[Event "*** SCC Grand Prix: Titled Tuesday Blitz"]
[Site "Chess.com"]
[Date "2020.08.04"]
[Round "6"]
[White "ace_mar"]
[Black "ferdipy"]
[Result "1/2-1/2"]
[WhiteElo "2460"]
[BlackElo "2326"]
[TimeControl "180+1"]
[EndTime "14:53:37 PDT"]
[Termination "Game drawn - insufficient material"]

1. d4 {[%clk 0:03:00.9]} 1... e5 {[%clk 0:03:00.1]} 2. dxe5 {[%clk 0:03:00.6]}
2... d6 {[%clk 0:02:59.6]} 3. Nf3 {[%clk 0:03:00.3]} 3... Nc6 {[%clk 0:02:57.5]}
4. e4 {[%clk 0:02:59.7]} 4... Bg4 {[%clk 0:02:57]} 5. exd6 {[%clk 0:02:55]} 5...
Bxd6 {[%clk 0:02:55.5]} 6. Nc3 {[%clk 0:02:54.7]} 6... Qe7 {[%clk 0:02:55.5]} 7.
Bb5 {[%clk 0:02:37.9]} 7... O-O-O {[%clk 0:02:47.7]} 8. Bxc6 {[%clk 0:02:33.5]}
8... bxc6 {[%clk 0:02:48.6]} 9. Qe2 {[%clk 0:02:33.9]} 9... Bc5 {[%clk 0:02:49]}
10. Qa6+ {[%clk 0:02:25.4]} 10... Kb8 {[%clk 0:02:46.6]} 11. Qxc6 {[%clk
0:02:25.3]} 11... Rd6 {[%clk 0:02:35.5]} 12. Qb5+ {[%clk 0:02:18.9]} 12... Rb6
{[%clk 0:02:33.9]} 13. Qc4 {[%clk 0:02:19.2]} 13... Bb4 {[%clk 0:02:30.2]} 14.
Bd2 {[%clk 0:02:10.9]} 14... Nf6 {[%clk 0:02:12.1]} 15. O-O-O {[%clk 0:02:08.3]}
15... Be6 {[%clk 0:01:38]} 16. Nd5 {[%clk 0:02:01.9]} 16... Bxd2+ {[%clk
0:01:32.4]} 17. Rxd2 {[%clk 0:02:00]} 17... Qd6 {[%clk 0:01:21.4]} 18. Nxb6
{[%clk 0:01:40.6]} 18... Bxc4 {[%clk 0:01:17.6]} 19. Rxd6 {[%clk 0:01:40.1]}
19... axb6 {[%clk 0:01:12.5]} 20. Rd4 {[%clk 0:01:39.7]} 20... Ba6 {[%clk
0:01:09.3]} 21. e5 {[%clk 0:01:39.3]} 21... Nh5 {[%clk 0:01:07]} 22. g4 {[%clk
0:01:36.6]} 22... Bb7 {[%clk 0:01:04]} 23. gxh5 {[%clk 0:01:24.9]} 23... Bxf3
{[%clk 0:01:03]} 24. Rg1 {[%clk 0:01:25.8]} 24... g6 {[%clk 0:00:48.7]} 25. Rf4
{[%clk 0:01:25.7]} 25... Bd5 {[%clk 0:00:45.5]} 26. hxg6 {[%clk 0:01:20.6]}
26... hxg6 {[%clk 0:00:44.7]} 27. h4 {[%clk 0:01:20.8]} 27... Be6 {[%clk
0:00:42.6]} 28. Rd4 {[%clk 0:01:14.9]} 28... c5 {[%clk 0:00:40.9]} 29. Rf4
{[%clk 0:01:13.5]} 29... b5 {[%clk 0:00:39.6]} 30. c3 {[%clk 0:01:11.3]} 30...
Kc7 {[%clk 0:00:40]} 31. a4 {[%clk 0:01:10.3]} 31... Ra8 {[%clk 0:00:37.2]} 32.
Kd2 {[%clk 0:01:00.7]} 32... bxa4 {[%clk 0:00:36.3]} 33. Ra1 {[%clk 0:00:58.6]}
33... Bb3 {[%clk 0:00:36.6]} 34. c4 {[%clk 0:00:56.5]} 34... Rf8 {[%clk
0:00:32.3]} 35. Kc3 {[%clk 0:00:53.3]} 35... Kd7 {[%clk 0:00:29.9]} 36. Rf6
{[%clk 0:00:52.3]} 36... Ke7 {[%clk 0:00:28.2]} 37. Rd6 {[%clk 0:00:37.3]} 37...
Rh8 {[%clk 0:00:27.8]} 38. Rh1 {[%clk 0:00:34.1]} 38... Rh5 {[%clk 0:00:23.2]}
39. f4 {[%clk 0:00:32.3]} 39... Ba2 {[%clk 0:00:23.6]} 40. Rc6 {[%clk
0:00:25.6]} 40... Rf5 {[%clk 0:00:22]} 41. Rxc5 {[%clk 0:00:24]} 41... Rxf4
{[%clk 0:00:20.2]} 42. Rc7+ {[%clk 0:00:20.6]} 42... Ke6 {[%clk 0:00:19.9]} 43.
h5 {[%clk 0:00:20.9]} 43... Rf3+ {[%clk 0:00:17.7]} 44. Kd4 {[%clk 0:00:18.2]}
44... gxh5 {[%clk 0:00:16.7]} 45. Rxh5 {[%clk 0:00:17.5]} 45... Rf4+ {[%clk
0:00:16.2]} 46. Kd3 {[%clk 0:00:16.5]} 46... Bb1+ {[%clk 0:00:15.1]} 47. Ke3
{[%clk 0:00:15.8]} 47... Rg4 {[%clk 0:00:13.7]} 48. Rh6+ {[%clk 0:00:15.5]}
48... Bg6 {[%clk 0:00:11.1]} 49. Rh8 {[%clk 0:00:11.5]} 49... Kxe5 {[%clk
0:00:10.9]} 50. Ra8 {[%clk 0:00:10.8]} 50... Rg3+ {[%clk 0:00:07.9]} 51. Kd2
{[%clk 0:00:09.2]} 51... Rg2+ {[%clk 0:00:07.9]} 52. Kc3 {[%clk 0:00:09.2]}
52... Rc2+ {[%clk 0:00:08.4]} 53. Kb4 {[%clk 0:00:09.2]} 53... Rxb2+ {[%clk
0:00:08.9]} 54. Kc5 {[%clk 0:00:07.7]} 54... Bc2 {[%clk 0:00:08.8]} 55. Rxf7
{[%clk 0:00:06.5]} 55... Ke6 {[%clk 0:00:08.8]} 56. Rfa7 {[%clk 0:00:06.1]}
56... Bb3 {[%clk 0:00:08.7]} 57. Kd4 {[%clk 0:00:03.3]} 57... Rc2 {[%clk
0:00:08.9]} 58. Ra6+ {[%clk 0:00:03.6]} 58... Kf5 {[%clk 0:00:07.8]} 59. c5
{[%clk 0:00:04.5]} 59... Rc4+ {[%clk 0:00:07.5]} 60. Kd3 {[%clk 0:00:04.2]}
60... Rxc5 {[%clk 0:00:07.8]} 61. Kd4 {[%clk 0:00:04.5]} 61... Rc4+ {[%clk
0:00:07.9]} 62. Kd3 {[%clk 0:00:05]} 62... Rc5 {[%clk 0:00:08.4]} 63. Kd2 {[%clk
0:00:04.3]} 63... Rd5+ {[%clk 0:00:08.2]} 64. Kc3 {[%clk 0:00:04.3]} 64... Rc5+
{[%clk 0:00:08.5]} 65. Kb2 {[%clk 0:00:05.2]} 65... Rc2+ {[%clk 0:00:08.4]} 66.
Ka3 {[%clk 0:00:06.1]} 66... Ra2+ {[%clk 0:00:06.8]} 67. Kb4 {[%clk 0:00:07]}
67... Re2 {[%clk 0:00:06.5]} 68. Ra5+ {[%clk 0:00:07.4]} 68... Re5 {[%clk
0:00:06.6]} 69. R5a7 {[%clk 0:00:05.8]} 69... Re4+ {[%clk 0:00:06]} 70. Ka3
{[%clk 0:00:06.7]} 70... Re6 {[%clk 0:00:05.1]} 71. Rf8+ {[%clk 0:00:06.9]}
71... Rf6 {[%clk 0:00:04.3]} 72. Rb8 {[%clk 0:00:05.5]} 72... Re6 {[%clk
0:00:03.9]} 73. Ra5+ {[%clk 0:00:05.7]} 73... Re5 {[%clk 0:00:04.5]} 74. Ra7
{[%clk 0:00:05.1]} 74... Ke4 {[%clk 0:00:04.9]} 75. Rf8 {[%clk 0:00:05.2]} 75...
Rd5 {[%clk 0:00:05.8]} 76. Rg7 {[%clk 0:00:05.4]} 76... Kd4 {[%clk 0:00:06.7]}
77. Rg4+ {[%clk 0:00:05.5]} 77... Kc5 {[%clk 0:00:07.6]} 78. Rc8+ {[%clk
0:00:05.6]} 78... Kd6 {[%clk 0:00:07.4]} 79. Rg6+ {[%clk 0:00:05.5]} 79... Ke5
{[%clk 0:00:07.3]} 80. Re8+ {[%clk 0:00:05.4]} 80... Kd4 {[%clk 0:00:07.8]} 81.
Rg4+ {[%clk 0:00:05.3]} 81... Kc5 {[%clk 0:00:08.1]} 82. Rg3 {[%clk 0:00:05.9]}
82... Rd1 {[%clk 0:00:06.8]} 83. Rc8+ {[%clk 0:00:06.2]} 83... Kb5 {[%clk
0:00:07]} 84. Rg5+ {[%clk 0:00:06.1]} 84... Ka6 {[%clk 0:00:07.5]} 85. Rc6+
{[%clk 0:00:06.2]} 85... Kb7 {[%clk 0:00:07.3]} 86. Rh6 {[%clk 0:00:06.6]} 86...
Rd7 {[%clk 0:00:07.8]} 87. Rhg6 {[%clk 0:00:05.9]} 87... Kc7 {[%clk 0:00:08]}
88. Rf6 {[%clk 0:00:06.1]} 88... Kb7 {[%clk 0:00:08.4]} 89. Rc5 {[%clk
0:00:06.3]} 89... Rc7 {[%clk 0:00:07.7]} 90. Re5 {[%clk 0:00:05.8]} 90... Rd7
{[%clk 0:00:07.6]} 91. Rfe6 {[%clk 0:00:05.4]} 91... Kc7 {[%clk 0:00:08]} 92.
Rf6 {[%clk 0:00:05.6]} 92... Kb7 {[%clk 0:00:08.2]} 93. Rf4 {[%clk 0:00:05.9]}
93... Kc7 {[%clk 0:00:08.6]} 94. Rb4 {[%clk 0:00:06.2]} 94... Kd6 {[%clk
0:00:08.9]} 95. Re3 {[%clk 0:00:05.9]} 95... Rc7 {[%clk 0:00:08.6]} 96. Rd3+
{[%clk 0:00:05.9]} 96... Ke5 {[%clk 0:00:08.5]} 97. Rb5+ {[%clk 0:00:05.9]}
97... Ke4 {[%clk 0:00:08.9]} 98. Rd6 {[%clk 0:00:05.3]} 98... Re7 {[%clk
0:00:08.4]} 99. Rd8 {[%clk 0:00:05.3]} 99... Ke3 {[%clk 0:00:08.1]} 100. Rdb8
{[%clk 0:00:05.2]} 100... Re4 {[%clk 0:00:07.3]} 101. Rxb3+ {[%clk 0:00:04.7]}
101... axb3 {[%clk 0:00:08.2]} 102. Rxb3+ {[%clk 0:00:05.2]} 102... Kf4 {[%clk
0:00:08.9]} 103. Rb4 {[%clk 0:00:05.3]} 103... Rxb4 {[%clk 0:00:07.3]} 104. Kxb4
{[%clk 0:00:06.2]} 1/2-1/2

[Event "*** SCC Grand Prix: Titled Tuesday Blitz"]
[Site "Chess.com"]
[Date "2020.08.04"]
[Round "7"]
[White "DenLaz"]
[Black "ChessSwole"]
[Result "1-0"]
[WhiteElo "2724"]
[BlackElo "2394"]
[TimeControl "180+1"]
[EndTime "14:57:29 PDT"]
[Termination "DenLaz won by resignation"]

1. d4 {[%clk 0:03:00.9]} 1... Nf6 {[%clk 0:02:59.3]} 2. Nf3 {[%clk 0:03:01.1]}
2... d5 {[%clk 0:02:59.4]} 3. c4 {[%clk 0:03:01.5]} 3... e6 {[%clk 0:02:58.1]}
4. Nc3 {[%clk 0:03:01.2]} 4... c6 {[%clk 0:02:56.3]} 5. e3 {[%clk 0:03:00.5]}
5... a6 {[%clk 0:02:54.8]} 6. c5 {[%clk 0:02:57]} 6... g6 {[%clk 0:02:53.9]} 7.
Be2 {[%clk 0:02:57.6]} 7... Bg7 {[%clk 0:02:54.2]} 8. O-O {[%clk 0:02:58.3]}
8... O-O {[%clk 0:02:54.7]} 9. b4 {[%clk 0:02:58.9]} 9... Nbd7 {[%clk
0:02:54.8]} 10. Bb2 {[%clk 0:02:59.1]} 10... Re8 {[%clk 0:02:54.8]} 11. Na4
{[%clk 0:02:56.9]} 11... Ne4 {[%clk 0:02:52.8]} 12. Ne5 {[%clk 0:02:54.8]} 12...
Nxe5 {[%clk 0:02:40.5]} 13. dxe5 {[%clk 0:02:55.7]} 13... Qc7 {[%clk 0:02:30]}
14. f3 {[%clk 0:02:54.4]} 14... Ng5 {[%clk 0:02:26]} 15. h4 {[%clk 0:02:54.6]}
15... Bxe5 {[%clk 0:02:22.9]} 16. hxg5 {[%clk 0:02:54.9]} 16... Bxb2 {[%clk
0:02:18.9]} 17. Nxb2 {[%clk 0:02:55.8]} 17... Qe5 {[%clk 0:02:19.6]} 18. Qd4
{[%clk 0:02:55.2]} 18... Qxg5 {[%clk 0:02:19.7]} 19. f4 {[%clk 0:02:55]} 19...
Qh6 {[%clk 0:02:17.1]} 20. Nd3 {[%clk 0:02:54]} 20... Qh4 {[%clk 0:02:13.3]} 21.
Rf3 {[%clk 0:02:47.3]} 21... a5 {[%clk 0:02:08.8]} 22. b5 {[%clk 0:02:29.8]}
22... cxb5 {[%clk 0:02:06.7]} 23. Raf1 {[%clk 0:02:22.5]} 23... Bd7 {[%clk
0:02:02.7]} 24. Ne5 {[%clk 0:02:21.6]} 24... Bc6 {[%clk 0:02:03]} 25. Rh3 {[%clk
0:02:21.7]} 25... Qf6 {[%clk 0:02:00.4]} 26. g4 {[%clk 0:02:16]} 26... Qg7
{[%clk 0:01:58.2]} 27. g5 {[%clk 0:02:16.1]} 27... a4 {[%clk 0:01:53.2]} 28. Ng4
{[%clk 0:02:15.3]} 28... Qxd4 {[%clk 0:01:52.8]} 29. exd4 {[%clk 0:02:16.2]}
29... Kg7 {[%clk 0:01:52.7]} 30. Kf2 {[%clk 0:02:14.6]} 30... Rh8 {[%clk
0:01:52.5]} 31. Rfh1 {[%clk 0:02:14.6]} 31... b4 {[%clk 0:01:50.3]} 32. Rb1
{[%clk 0:02:13.5]} 32... b3 {[%clk 0:01:48.1]} 33. axb3 {[%clk 0:02:14.4]} 33...
a3 {[%clk 0:01:48.5]} 34. Ra1 {[%clk 0:02:14.1]} 34... Ra7 {[%clk 0:01:45.3]}
35. b4 {[%clk 0:02:13.8]} 35... h5 {[%clk 0:01:45.1]} 36. gxh6+ {[%clk
0:02:13.6]} 36... Kf8 {[%clk 0:01:43.8]} 37. b5 {[%clk 0:02:14.1]} 37... Be8
{[%clk 0:01:43.6]} 38. Rhxa3 {[%clk 0:02:12.1]} 1-0

[Event "*** SCC Grand Prix: Titled Tuesday Blitz"]
[Site "Chess.com"]
[Date "2020.08.04"]
[Round "7"]
[White "Flopezin"]
[Black "superchess02"]
[Result "0-1"]
[WhiteElo "2351"]
[BlackElo "2721"]
[TimeControl "180+1"]
[EndTime "14:57:42 PDT"]
[Termination "superchess02 won by resignation"]

1. c4 {[%clk 0:02:59.9]} 1... Nf6 {[%clk 0:02:59.6]} 2. Nc3 {[%clk 0:02:59.3]}
2... e6 {[%clk 0:03:00.5]} 3. e4 {[%clk 0:02:59.4]} 3... d6 {[%clk 0:03:00.8]}
4. d4 {[%clk 0:02:59.2]} 4... Nbd7 {[%clk 0:03:00.3]} 5. Nf3 {[%clk 0:02:59.7]}
5... c5 {[%clk 0:03:00.1]} 6. h3 {[%clk 0:02:57]} 6... cxd4 {[%clk 0:03:00]} 7.
Nxd4 {[%clk 0:02:57.9]} 7... a6 {[%clk 0:03:00.4]} 8. Be3 {[%clk 0:02:57.4]}
8... Qc7 {[%clk 0:02:59.9]} 9. Be2 {[%clk 0:02:57]} 9... b6 {[%clk 0:03:00]} 10.
b3 {[%clk 0:02:53.4]} 10... Bb7 {[%clk 0:03:00.5]} 11. Qc2 {[%clk 0:02:53.7]}
11... d5 {[%clk 0:02:53.5]} 12. Rc1 {[%clk 0:02:38.1]} 12... dxe4 {[%clk
0:02:49.4]} 13. O-O {[%clk 0:02:36.9]} 13... h5 {[%clk 0:02:47.3]} 14. Rfd1
{[%clk 0:02:27.1]} 14... Bc5 {[%clk 0:02:46.3]} 15. Na4 {[%clk 0:02:17.3]} 15...
Bd6 {[%clk 0:02:42.5]} 16. Qd2 {[%clk 0:02:05]} 16... Be5 {[%clk 0:02:42.4]} 17.
Bf1 {[%clk 0:01:45.9]} 17... Nc5 {[%clk 0:02:36.5]} 18. Nxc5 {[%clk 0:01:45.5]}
18... bxc5 {[%clk 0:02:37.4]} 19. Ne2 {[%clk 0:01:42.6]} 19... a5 {[%clk
0:02:30.2]} 20. Nc3 {[%clk 0:01:40.9]} 20... Ng4 {[%clk 0:02:03.7]} 21. hxg4
{[%clk 0:01:26.9]} 21... Bh2+ {[%clk 0:02:03.3]} 22. Kh1 {[%clk 0:01:24.2]}
22... hxg4 {[%clk 0:02:03.9]} 23. Nb5 {[%clk 0:01:23.2]} 23... Bg1+ {[%clk
0:02:01.6]} 0-1

[Event "*** SCC Grand Prix: Titled Tuesday Blitz"]
[Site "Chess.com"]
[Date "2020.08.04"]
[Round "7"]
[White "chessvr"]
[Black "AJSC02"]
[Result "0-1"]
[WhiteElo "2095"]
[BlackElo "2257"]
[TimeControl "180+1"]
[EndTime "14:57:43 PDT"]
[Termination "AJSC02 won by resignation"]

1. e4 {[%clk 0:03:00.9]} 1... c5 {[%clk 0:03:00.3]} 2. Nf3 {[%clk 0:03:00]} 2...
Nc6 {[%clk 0:03:00.8]} 3. Bb5 {[%clk 0:02:57.6]} 3... Nf6 {[%clk 0:03:00.3]} 4.
e5 {[%clk 0:02:56.7]} 4... Nd5 {[%clk 0:02:59.8]} 5. c4 {[%clk 0:02:55.8]} 5...
Ndb4 {[%clk 0:02:59.8]} 6. O-O {[%clk 0:02:51.6]} 6... a6 {[%clk 0:02:55.2]} 7.
Bxc6 {[%clk 0:02:49.2]} 7... dxc6 {[%clk 0:02:56.1]} 8. Nc3 {[%clk 0:02:35.8]}
8... Bf5 {[%clk 0:02:45.1]} 9. a3 {[%clk 0:02:13.8]} 9... Nc2 {[%clk 0:02:40.6]}
10. Ra2 {[%clk 0:02:12.2]} 10... Bd3 {[%clk 0:02:24.7]} 11. b3 {[%clk
0:02:11.7]} 11... Bxf1 {[%clk 0:02:22.4]} 12. Qxf1 {[%clk 0:02:10]} 12... Nd4
{[%clk 0:02:20.1]} 13. Ne4 {[%clk 0:02:09.1]} 13... Nxf3+ {[%clk 0:02:16.4]} 14.
gxf3 {[%clk 0:02:08]} 14... e6 {[%clk 0:02:16.1]} 15. Qg2 {[%clk 0:02:03.3]}
15... Qd3 {[%clk 0:02:05.3]} 16. Rb2 {[%clk 0:01:39.4]} 16... O-O-O {[%clk
0:02:01.4]} 17. b4 {[%clk 0:01:39]} 17... Qxc4 {[%clk 0:01:49.1]} 18. Nc3 {[%clk
0:01:34.8]} 18... cxb4 {[%clk 0:01:47.2]} 19. axb4 {[%clk 0:01:34.3]} 19... Bxb4
{[%clk 0:01:45.7]} 20. Qg4 {[%clk 0:01:30.5]} 20... Qxg4+ {[%clk 0:01:43.9]} 21.
fxg4 {[%clk 0:01:30]} 21... Bxc3 {[%clk 0:01:44.3]} 22. dxc3 {[%clk 0:01:29.6]}
22... Rd1+ {[%clk 0:01:44.8]} 23. Kg2 {[%clk 0:01:30]} 23... Rxc1 {[%clk
0:01:45.4]} 24. Rc2 {[%clk 0:01:29.8]} 24... Rxc2 {[%clk 0:01:45.2]} 0-1

[Event "*** SCC Grand Prix: Titled Tuesday Blitz"]
[Site "Chess.com"]
[Date "2020.08.04"]
[Round "7"]
[White "abykhovsky"]
[Black "Isajevsky_Anton"]
[Result "1-0"]
[WhiteElo "2773"]
[BlackElo "2585"]
[TimeControl "180+1"]
[EndTime "14:58:05 PDT"]
[Termination "abykhovsky won by resignation"]

1. Nf3 {[%clk 0:02:51]} 1... c5 {[%clk 0:02:58.7]} 2. c4 {[%clk 0:02:50.3]} 2...
g6 {[%clk 0:02:58.5]} 3. Nc3 {[%clk 0:02:51.2]} 3... Bg7 {[%clk 0:02:58.3]} 4.
e3 {[%clk 0:02:51.5]} 4... Nf6 {[%clk 0:02:55.8]} 5. d4 {[%clk 0:02:52]} 5...
cxd4 {[%clk 0:02:55.2]} 6. exd4 {[%clk 0:02:52.9]} 6... d5 {[%clk 0:02:52.8]} 7.
cxd5 {[%clk 0:02:53.8]} 7... Nxd5 {[%clk 0:02:51.9]} 8. Bc4 {[%clk 0:02:53.2]}
8... Nb6 {[%clk 0:02:48.5]} 9. Bb3 {[%clk 0:02:52.3]} 9... O-O {[%clk
0:02:46.4]} 10. O-O {[%clk 0:02:52.4]} 10... Bg4 {[%clk 0:02:45.6]} 11. d5
{[%clk 0:02:51.9]} 11... N8d7 {[%clk 0:02:43.7]} 12. h3 {[%clk 0:02:51.9]} 12...
Bxf3 {[%clk 0:02:43.6]} 13. Qxf3 {[%clk 0:02:52.8]} 13... Nc5 {[%clk 0:02:43.4]}
14. Bc2 {[%clk 0:02:51.9]} 14... Rc8 {[%clk 0:02:38.1]} 15. Rd1 {[%clk
0:02:51.5]} 15... Nc4 {[%clk 0:02:36.6]} 16. h4 {[%clk 0:02:43.2]} 16... Nd7
{[%clk 0:01:58]} 17. h5 {[%clk 0:02:40.4]} 17... Nf6 {[%clk 0:01:57.9]} 18. h6
{[%clk 0:02:35.1]} 18... Bh8 {[%clk 0:01:57.7]} 19. Rb1 {[%clk 0:02:33.6]} 19...
a6 {[%clk 0:01:57]} 20. a4 {[%clk 0:02:32.2]} 20... Qd7 {[%clk 0:01:39.9]} 21.
Bb3 {[%clk 0:02:28.6]} 21... Rfd8 {[%clk 0:01:37.5]} 22. Bg5 {[%clk 0:02:25.6]}
22... Qf5 {[%clk 0:01:30.8]} 23. Qxf5 {[%clk 0:02:22.8]} 23... gxf5 {[%clk
0:01:30.8]} 24. Re1 {[%clk 0:02:22.4]} 24... Kf8 {[%clk 0:01:27.2]} 25. Bxc4
{[%clk 0:02:15.9]} 25... Rxc4 {[%clk 0:01:26.7]} 26. Re5 {[%clk 0:02:16.4]}
26... Rd4 {[%clk 0:01:06.4]} 27. Rbe1 {[%clk 0:02:13.3]} 27... Rd7 {[%clk
0:01:06.6]} 28. Rxf5 {[%clk 0:02:08.4]} 28... Nxd5 {[%clk 0:01:02]} 29. Nxd5
{[%clk 0:02:07.7]} 29... R4xd5 {[%clk 0:01:02.2]} 30. Rxd5 {[%clk 0:02:07.9]}
30... Rxd5 {[%clk 0:01:02]} 31. Bxe7+ {[%clk 0:02:08.3]} 31... Kg8 {[%clk
0:01:00.5]} 32. Bf6 {[%clk 0:02:07.1]} 1-0

[Event "*** SCC Grand Prix: Titled Tuesday Blitz"]
[Site "Chess.com"]
[Date "2020.08.04"]
[Round "7"]
[White "keepitcool9499"]
[Black "Shield12"]
[Result "0-1"]
[WhiteElo "2642"]
[BlackElo "2838"]
[TimeControl "180+1"]
[EndTime "14:58:10 PDT"]
[Termination "Shield12 won by resignation"]

1. d4 {[%clk 0:03:00.9]} 1... Nf6 {[%clk 0:03:00.2]} 2. c4 {[%clk 0:03:01.8]}
2... e6 {[%clk 0:03:01.1]} 3. Nc3 {[%clk 0:03:02.4]} 3... Bb4 {[%clk 0:03:01.7]}
4. Bd2 {[%clk 0:03:02.9]} 4... O-O {[%clk 0:03:02.3]} 5. Nf3 {[%clk 0:03:03.3]}
5... b6 {[%clk 0:03:03]} 6. e3 {[%clk 0:03:03.7]} 6... Bb7 {[%clk 0:03:03.6]} 7.
Bd3 {[%clk 0:03:04.2]} 7... c5 {[%clk 0:03:04.2]} 8. a3 {[%clk 0:03:03.9]} 8...
Ba5 {[%clk 0:03:04.7]} 9. Qc2 {[%clk 0:03:00.4]} 9... Qe7 {[%clk 0:03:03.7]} 10.
O-O {[%clk 0:02:59.6]} 10... d6 {[%clk 0:03:00.8]} 11. Ne4 {[%clk 0:02:59.8]}
11... Bxd2 {[%clk 0:02:58]} 12. Nfxd2 {[%clk 0:02:58.9]} 12... Nbd7 {[%clk
0:02:56.8]} 13. Nxf6+ {[%clk 0:02:56.7]} 13... Nxf6 {[%clk 0:02:57.7]} 14. Ne4
{[%clk 0:02:56.8]} 14... Bxe4 {[%clk 0:02:55.2]} 15. Bxe4 {[%clk 0:02:57.7]}
15... Rac8 {[%clk 0:02:55.8]} 16. d5 {[%clk 0:02:55]} 16... exd5 {[%clk
0:02:43.5]} 17. Bxd5 {[%clk 0:02:55.9]} 17... Nxd5 {[%clk 0:02:44]} 18. cxd5
{[%clk 0:02:56.8]} 18... Rfe8 {[%clk 0:02:43.9]} 19. Rad1 {[%clk 0:02:55]} 19...
Qe4 {[%clk 0:02:41.5]} 20. Qxe4 {[%clk 0:02:41.5]} 20... Rxe4 {[%clk 0:02:42.4]}
21. Rd3 {[%clk 0:02:40.2]} 21... Rce8 {[%clk 0:02:42.2]} 22. Rfd1 {[%clk
0:02:39.3]} 22... f5 {[%clk 0:02:41.6]} 23. Kf1 {[%clk 0:02:38.5]} 23... Kf7
{[%clk 0:02:41.3]} 24. Ke2 {[%clk 0:02:37.9]} 24... f4 {[%clk 0:02:37.2]} 25.
Kf3 {[%clk 0:02:32.2]} 25... fxe3 {[%clk 0:02:36.8]} 26. Rxe3 {[%clk 0:02:33.1]}
26... Rxe3+ {[%clk 0:02:36.9]} 27. fxe3 {[%clk 0:02:34]} 27... Kf6 {[%clk
0:02:37]} 28. Rf1 {[%clk 0:02:30.2]} 28... Ke5 {[%clk 0:02:35.7]} 29. Ke2 {[%clk
0:02:28.4]} 29... Re7 {[%clk 0:02:33.7]} 30. Rd1 {[%clk 0:02:27.1]} 30... Ke4
{[%clk 0:02:33.5]} 31. b4 {[%clk 0:02:19.9]} 31... g5 {[%clk 0:02:30.9]} 32. g4
{[%clk 0:02:17.4]} 32... h5 {[%clk 0:02:26.9]} 33. gxh5 {[%clk 0:02:15.5]} 33...
Rh7 {[%clk 0:02:26.6]} 34. bxc5 {[%clk 0:02:13.6]} 34... bxc5 {[%clk 0:02:27.5]}
35. Rf1 {[%clk 0:01:50.9]} 35... Rxh5 {[%clk 0:02:25.8]} 36. Rf7 {[%clk
0:01:49.8]} 36... Rxh2+ {[%clk 0:02:25.5]} 37. Kf1 {[%clk 0:01:49.8]} 37... Kxd5
{[%clk 0:02:19.1]} 38. Rxa7 {[%clk 0:01:49.3]} 38... c4 {[%clk 0:02:19.3]} 39.
a4 {[%clk 0:01:48.7]} 39... c3 {[%clk 0:02:19.3]} 40. Rc7 {[%clk 0:01:48.9]}
40... c2 {[%clk 0:02:08]} 41. Kg1 {[%clk 0:01:45]} 41... Rd2 {[%clk 0:02:07.3]}
42. a5 {[%clk 0:01:45]} 42... Rd1+ {[%clk 0:02:07.2]} 43. Kg2 {[%clk 0:01:45.9]}
43... c1=Q {[%clk 0:02:08.1]} 44. Rxc1 {[%clk 0:01:46]} 44... Rxc1 {[%clk
0:02:09]} 45. a6 {[%clk 0:01:46.9]} 45... Ra1 {[%clk 0:02:09.5]} 46. a7 {[%clk
0:01:47.8]} 46... Rxa7 {[%clk 0:02:10.2]} 47. Kg3 {[%clk 0:01:47.1]} 47... Ke4
{[%clk 0:02:11.1]} 48. Kg4 {[%clk 0:01:48]} 48... Kxe3 {[%clk 0:02:11.4]} 49.
Kxg5 {[%clk 0:01:48.9]} 49... d5 {[%clk 0:02:12.3]} 50. Kf6 {[%clk 0:01:49.8]}
50... d4 {[%clk 0:02:13.2]} 51. Ke6 {[%clk 0:01:50.7]} 51... d3 {[%clk
0:02:14.1]} 52. Ke5 {[%clk 0:01:51.6]} 52... d2 {[%clk 0:02:15]} 53. Kf5 {[%clk
0:01:52.5]} 53... d1=Q {[%clk 0:02:15.9]} 54. Kg5 {[%clk 0:01:53.4]} 54... Qf3
{[%clk 0:02:15.7]} 55. Kh4 {[%clk 0:01:52.9]} 55... Qg2 {[%clk 0:02:13]} 0-1

[Event "*** SCC Grand Prix: Titled Tuesday Blitz"]
[Site "Chess.com"]
[Date "2020.08.04"]
[Round "7"]
[White "SilviusTiberius"]
[Black "BogdanDeac"]
[Result "0-1"]
[WhiteElo "2511"]
[BlackElo "2771"]
[TimeControl "180+1"]
[EndTime "14:58:39 PDT"]
[Termination "BogdanDeac won by resignation"]

1. e4 {[%clk 0:03:00.9]} 1... c5 {[%clk 0:02:59.2]} 2. Nf3 {[%clk 0:03:01.1]}
2... d6 {[%clk 0:02:58.9]} 3. d4 {[%clk 0:03:01.4]} 3... cxd4 {[%clk 0:02:59.8]}
4. Nxd4 {[%clk 0:03:01.5]} 4... Nf6 {[%clk 0:03:00.4]} 5. Nc3 {[%clk 0:03:01.9]}
5... a6 {[%clk 0:03:00.9]} 6. h3 {[%clk 0:03:02.2]} 6... e5 {[%clk 0:03:00.5]}
7. Nb3 {[%clk 0:03:02.2]} 7... Be6 {[%clk 0:03:00.2]} 8. Be3 {[%clk 0:03:01.8]}
8... Nc6 {[%clk 0:02:50.7]} 9. a4 {[%clk 0:02:45.4]} 9... Be7 {[%clk 0:02:42]}
10. a5 {[%clk 0:02:45.2]} 10... O-O {[%clk 0:02:41.6]} 11. Qf3 {[%clk
0:02:19.8]} 11... Bxb3 {[%clk 0:02:34.9]} 12. cxb3 {[%clk 0:02:18.4]} 12... Nxa5
{[%clk 0:02:34.6]} 13. g4 {[%clk 0:02:10]} 13... Nxb3 {[%clk 0:02:33.8]} 14. Rd1
{[%clk 0:02:10.2]} 14... Nd4 {[%clk 0:02:33.6]} 15. Bxd4 {[%clk 0:02:08.4]}
15... exd4 {[%clk 0:02:34.5]} 16. Rxd4 {[%clk 0:02:08.2]} 16... Qb6 {[%clk
0:02:34.3]} 17. Rd2 {[%clk 0:02:07.2]} 17... d5 {[%clk 0:02:34.1]} 18. exd5
{[%clk 0:01:50.1]} 18... Rfe8 {[%clk 0:02:32.2]} 19. Bd3 {[%clk 0:01:33.8]}
19... Ba3+ {[%clk 0:02:31.4]} 20. Kf1 {[%clk 0:01:32.3]} 20... Bxb2 {[%clk
0:02:31.2]} 21. Ne2 {[%clk 0:01:27.5]} 21... Qb4 {[%clk 0:02:28.1]} 22. Rd1
{[%clk 0:01:23.5]} 22... Ne4 {[%clk 0:02:24.9]} 23. Kg2 {[%clk 0:01:08.8]} 23...
Nd6 {[%clk 0:02:24.8]} 24. g5 {[%clk 0:00:56.2]} 24... a5 {[%clk 0:02:23.4]} 25.
h4 {[%clk 0:00:54.8]} 25... a4 {[%clk 0:02:23.5]} 26. h5 {[%clk 0:00:54.7]}
26... Re5 {[%clk 0:02:22.6]} 27. g6 {[%clk 0:00:51.6]} 27... fxg6 {[%clk
0:02:20.1]} 28. hxg6 {[%clk 0:00:51.4]} 28... h6 {[%clk 0:02:20.6]} 29. Ng3
{[%clk 0:00:32]} 29... Rf8 {[%clk 0:02:19.5]} 0-1